bitfinex/quotes_ETHUSD_20250520
["timestamp","ask_amount","ask_price","bid_price","bid_amount"]
[1747725556155,0.05,2535.9,2535.7,8.748]
[1747725560782,0.05,2535.9,2535.8,0.9608]
[1747725560986,0.05,2535.9,2535.8,9.7078]
[1747725561184,0.05,2535.9,2535.8,11.26968]
[1747725562604,0.05,2535.9,2535.8,1.56188]
[1747725562757,3.99337316,2535.9,2535.6,0.9567]
[1747725562958,3.99337316,2535.9,2535.7,8.747]
[1747725563784,0.05,2535.9,2535.7,8.747]
[1747725564384,0.05,2535.9,2535.8,8.03942819]
[1747725564587,0.05,2535.9,2535.8,30.88431106]
[1747725564760,0.05,2535.9,2535.8,26.901359]
[1747725564960,0.05,2535.9,2535.8,24.691498]
[1747725565658,0.05,2535.9,2535.8,25.06739061]
[1747725566094,0.05,2535.9,2535.8,29.01091927]
[1747725567298,0.05,2535.9,2535.8,13.86022127]
[1747725567601,0.05,2535.9,2535.8,55.75761027]
[1747725568101,0.05,2535.9,2535.8,51.81408161]
[1747725568461,0.05,2535.9,2535.8,66.31408161]
[1747725569715,0.05,2535.9,2535.8,70.25761027]
[1747725570429,0.05,2536.9,2536.4,1.042]
[1747725570616,0.05,2536.9,2536.3,8.55]
[1747725570617,0.05,2536.9,2536.7,1.042]
[1747725570921,3.99181875,2536.9,2536.8,0.9042]
[1747725571105,3.99181875,2536.9,2536.8,17.6492]
[1747725571677,3.99181875,2536.9,2536.8,8.9042]
[1747725571880,3.99181875,2536.9,2536.8,17.6482]
[1747725574228,3.99181875,2536.9,2536.8,18.02417725]
[1747725574424,3.99181875,2536.9,2536.8,17.11997725]
[1747725574626,3.99181875,2536.9,2536.8,0.37597725]
[1747725574846,4.94711875,2536.9,2536.8,0.37597725]
[1747725575704,4.94118494,2536.6,2536.5,25.711]
[1747725575902,6.47872739,2536.6,2536.5,25.711]
[1747725576111,7.5208153,2536.6,2536.5,25.711]
[1747725576632,5.98327285,2536.6,2536.5,25.711]
[1747725579919,6.38371252,2536.6,2536.5,25.711]
[1747725581109,3.94368418,2535.7,2535.6,1.0197]
[1747725581321,3.94368418,2535.7,2535.6,26.7297]
[1747725581901,3.94368418,2535.7,2535.6,27.10600765]
[1747725582127,3.94325582,2536.0,2535.6,40.60578065]
[1747725582328,3.9435567,2535.8,2535.6,27.10600765]
[1747725582526,3.94368418,2535.7,2535.6,27.10600765]
[1747725583332,3.94368418,2535.7,2535.6,35.10600765]
[1747725584268,3.94340649,2535.9,2535.6,35.10600765]
[1747725584480,3.94290671,2536.2,2535.7,8.37630765]
[1747725584778,3.9425958,2536.4,2535.7,8.37630765]
[1747725584933,3.94352866,2535.8,2535.7,8.37630765]
[1747725585577,3.94352866,2535.8,2535.7,22.97630765]
[1747725587546,3.94345498,2535.9,2535.7,22.97630765]
[1747725588072,3.94345498,2535.9,2535.8,0.37630765]
[1747725588965,6.53709743,2535.9,2535.8,9.06630765]
[1747725589137,4.99955498,2535.9,2535.8,9.06630765]
[1747725589337,3.94345498,2535.9,2535.8,19.67493842]
[1747725589638,3.94345498,2535.9,2535.8,17.06630765]
[1747725590370,3.94345498,2535.9,2535.8,16.69]
[1747725591448,3.94345498,2535.9,2535.8,8.0]
[1747725591643,3.94368418,2535.7,2535.6,25.02]
[1747725591844,3.94368418,2535.7,2535.6,33.711]
[1747725593747,3.9436048,2535.8,2535.7,8.0]
[1747725593977,3.94342422,2535.9,2535.7,8.0]
[1747725594155,3.94352866,2535.8,2535.7,8.0]
[1747725595254,3.94352866,2535.8,2535.7,8.37639283]
[1747725595449,3.9434015,2535.9,2535.7,9.35299283]
[1747725595657,3.94331746,2536.0,2535.7,9.35299283]
[1747725596051,3.94313261,2536.1,2535.7,9.35299283]
[1747725596255,3.94328422,2536.0,2535.7,9.35299283]
[1747725596954,3.94352866,2535.8,2535.7,9.35299283]
[1747725597274,3.94352866,2535.8,2535.7,16.691]
[1747725598756,3.94352866,2535.8,2535.7,17.06744579]
[1747725599480,3.94326701,2536.0,2535.7,17.06744579]
[1747725599778,3.94335079,2536.0,2535.7,17.06744579]
[1747725600145,3.94345286,2535.9,2535.7,17.06744579]
[1747725600345,3.94345286,2535.9,2535.8,8.0]
[1747725600752,3.94345286,2535.9,2535.8,22.97744579]
[1747725602084,3.94345286,2535.9,2535.8,17.06744579]
[1747725603867,3.94345286,2535.9,2535.8,0.37644579]
[1747725604071,4.95675286,2535.9,2535.8,9.01544579]
[1747725606388,4.95675286,2535.9,2535.8,0.37644579]
[1747725606558,13.50675286,2535.9,2535.8,0.37644579]
[1747725606756,13.98490962,2535.9,2535.8,0.37644579]
[1747725606977,13.69490071,2535.9,2535.8,0.37644579]
[1747725607281,5.51145082,2535.4,2535.3,0.62815643]
[1747725607486,6.35638145,2535.4,2535.3,0.62815643]
[1747725607979,6.35638145,2535.4,2534.8,8.64]
[1747725607980,4.94722879,2534.9,2534.8,8.64]
[1747725608181,3.94524006,2534.7,2534.6,17.023]
[1747725608382,3.94524006,2534.7,2534.6,25.664]
[1747725608975,4.93084006,2534.7,2534.6,25.664]
[1747725609171,6.21292718,2534.7,2534.6,25.664]
[1747725609649,6.21292718,2534.7,2534.6,8.641]
[1747725609973,5.46060707,2534.4,2534.3,0.62815643]
[1747725610179,8.66010986,2534.4,2534.3,0.62815643]
[1747725610522,8.66010986,2534.4,2534.1,0.05]
[1747725610523,5.46091846,2534.2,2534.1,0.05]
[1747725616005,15.17091846,2534.2,2534.1,0.05]
[1747725616205,4.91091846,2534.2,2534.1,0.05]
[1747725616380,3.94601846,2534.2,2534.1,0.05]
[1747725616997,4.27530113,2534.2,2534.1,0.05]
[1747725620470,5.09741871,2534.2,2534.1,0.05]
[1747725621605,4.76813604,2534.2,2534.1,0.05]
[1747725622369,8.99843883,2534.2,2534.1,0.05]
[1747725623902,5.79893604,2534.2,2534.1,0.05]
[1747725624606,6.34893604,2534.2,2534.1,0.05]
[1747725624807,24.60893604,2534.2,2534.1,0.05]
[1747725626608,16.05893604,2534.2,2534.1,0.05]
[1747725626793,4.97681846,2534.2,2534.1,0.05]
[1747725627179,3.94601846,2534.2,2534.1,0.05]
[1747725629013,3.94617418,2534.1,2534.0,9.58022621]
[1747725630210,4.27545685,2534.1,2534.0,9.58022621]
[1747725631917,3.94702577,2533.6,2533.4,23.5185]
[1747725632218,0.32928267,2534.1,2533.6,8.0]
[1747725632219,3.94681689,2533.7,2533.6,8.0]
[1747725632813,3.94695295,2533.6,2533.5,10.99885]
[1747725633025,3.94685976,2533.7,2533.5,8.647]
[1747725634113,3.94672281,2533.8,2533.6,0.9611]
[1747725634312,3.94659102,2533.9,2533.6,0.9611]
[1747725634615,3.94652635,2533.9,2533.6,0.9611]
[1747725634788,3.94652635,2533.9,2533.7,0.96081]
[1747725634994,3.94656033,2533.9,2533.7,0.96081]
[1747725635191,3.94508442,2534.8,2533.8,0.9803]
[1747725635396,1.0205,2534.9,2533.8,0.9803]
[1747725638101,3.94555139,2534.5,2534.4,8.9731677]
[1747725640020,3.94555139,2534.5,2534.4,8.597]
[1747725642829,3.94532323,2534.7,2534.5,1.0141]
[1747725642998,3.94506363,2534.9,2534.6,0.96111]
[1747725643203,3.94493565,2534.9,2534.7,0.03944813]
[1747725643402,3.94493565,2534.9,2534.7,1.0062]
[1747725643827,3.94434654,2535.3,2534.7,1.0062]
[1747725643828,3.94508442,2534.8,2534.7,1.0062]
[1747725644414,3.94508442,2534.8,2534.7,1.38271942]
[1747725647935,3.94508442,2534.8,2534.7,17.97771942]
[1747725649419,3.94508442,2534.8,2534.7,9.97771942]
[1747725649616,3.94508442,2534.8,2534.7,1.38271942]
[1747725649818,3.94508442,2534.8,2534.7,8.97151942]
[1747725650115,4.73408819,2534.8,2534.7,8.97051942]
[1747725650515,4.73408819,2534.8,2534.7,0.37651942]
[1747725650717,3.94570707,2534.4,2534.3,8.594]
[1747725650918,3.94496115,2534.9,2534.5,0.9843]
[1747725651132,3.94539572,2534.6,2534.5,0.9843]
[1747725651333,3.94539572,2534.6,2534.5,2.74213]
[1747725651637,3.94529964,2534.7,2534.5,2.74213]
[1747725652015,3.94539572,2534.6,2534.5,2.74213]
[1747725652520,3.94539572,2534.6,2534.5,0.9843]
[1747725652921,3.94576331,2534.4,2534.2,9.032]
[1747725653248,3.94576331,2534.4,2534.3,8.594]
[1747725654365,3.94576331,2534.4,2534.3,8.97018684]
[1747725655032,3.94561507,2534.5,2534.4,8.0]
[1747725655255,3.944982,2534.9,2534.4,8.0]
[1747725655437,3.9452593,2534.7,2534.5,0.9921]
[1747725655756,1.0165,2535.3,2534.5,0.9921]
[1747725655757,3.94539572,2534.6,2534.5,0.9921]
[1747725655931,3.94464557,2535.1,2534.5,0.9921]
[1747725656132,3.94531225,2534.7,2534.5,0.9921]
[1747725656444,3.94531225,2534.7,2534.6,0.89921]
[1747725657320,3.94531225,2534.7,2534.6,0.37679449]
[1747725658257,3.94446197,2535.2,2534.6,0.37679449]
[1747725658456,1.0165,2535.3,2534.7,0.37679449]
[1747725658632,3.94443885,2535.3,2534.9,8.0]
[1747725658953,1.0311,2535.6,2534.9,8.0]
[1747725659465,3.94423341,2535.4,2534.9,8.0]
[1747725659622,3.94415534,2535.4,2534.9,11.94488784]
[1747725659959,1.0311,2535.6,2534.9,8.0]
[1747725660117,3.94460773,2535.2,2534.9,8.0]
[1747725660322,3.94430639,2535.3,2535.0,8.97079449]
[1747725660541,3.94461756,2535.1,2535.0,16.97079449]
[1747725660753,3.94419748,2535.4,2535.0,8.97079449]
[1747725660941,3.94439497,2535.3,2535.2,8.0]
[1747725662232,3.94439497,2535.3,2535.2,8.37679449]
[1747725664045,1.0311,2535.6,2535.2,8.37679449]
[1747725664340,3.99350468,2535.9,2535.2,8.37679449]
[1747725664341,3.94417247,2535.4,2535.2,8.37679449]
[1747725664551,3.94430639,2535.3,2535.2,8.37679449]
[1747725664736,3.94430639,2535.3,2535.2,8.92279449]
[1747725664959,3.94430639,2535.3,2535.2,8.92179449]
[1747725665132,4.73315428,2535.3,2535.2,8.92179449]
[1747725665543,4.73315428,2535.3,2535.2,8.545]
[1747725666141,3.94430639,2535.3,2535.2,8.545]
[1747725669360,3.94430639,2535.3,2535.2,16.545]
[1747725669657,3.94356277,2535.8,2535.2,16.92180531]
[1747725669970,3.94408446,2535.5,2535.3,8.0]
[1747725670269,3.94352866,2535.8,2535.3,8.0]
[1747725670667,3.94376442,2535.7,2535.2,16.92180531]
[1747725670846,3.94376442,2535.7,2535.3,8.0]
[1747725671036,3.94368418,2535.7,2535.3,8.0]
[1747725671236,3.94368418,2535.7,2535.4,0.37680531]
[1747725671772,3.94389591,2535.6,2535.4,0.37680531]
[1747725672071,3.94389591,2535.6,2535.4,2.11608278]
[1747725672458,0.05,2535.9,2535.4,2.11608278]
[1747725672459,3.99348629,2535.9,2535.4,2.11608278]
[1747725672667,0.05,2535.9,2535.5,0.37680531]
[1747725672839,3.99344636,2535.9,2535.7,8.0]
[1747725673035,0.05,2535.9,2535.8,16.545]
[1747725673233,0.05,2535.9,2535.8,36.23054618]
[1747725673566,0.05,2535.9,2535.8,40.17407484]
[1747725673768,0.05,2535.9,2535.8,35.89410718]
[1747725673935,0.05,2535.9,2535.8,25.29696018]
[1747725674131,0.05,2535.9,2535.8,25.84696018]
[1747725674665,0.05,2535.9,2535.8,26.23403406]
[1747725674969,0.05,2535.9,2535.8,22.73059972]
[1747725676468,0.05,2536.9,2535.9,8.55]
[1747725676769,3.94229468,2536.6,2536.1,0.55]
[1747725676964,3.94229468,2536.6,2536.2,17.026]
[1747725677268,3.94229468,2536.6,2536.4,8.0]
[1747725677471,3.99187466,2536.9,2536.4,8.0]
[1747725677667,3.94213118,2536.7,2536.4,8.0]
[1747725677860,3.94213118,2536.7,2536.5,1.08982818]
[1747725679071,3.94200281,2536.8,2536.5,1.08982818]
[1747725679770,0.05,2536.9,2536.6,13.911]
[1747725680276,0.05,2536.9,2536.8,8.0]
[1747725680607,0.05,2536.9,2536.8,29.32036347]
[1747725680776,3.94059301,2537.7,2537.2,8.0]
[1747725680963,3.94049808,2537.8,2537.4,8.0]
[1747725681150,0.05,2537.9,2537.4,8.0]
[1747725681352,0.05,2537.9,2537.5,1.08982818]
[1747725681675,3.94042083,2537.8,2537.7,8.0]
[1747725681879,3.94042083,2537.8,2537.7,16.542]
[1747725683447,3.94042083,2537.8,2537.4,8.0]
[1747725683651,3.94088669,2537.5,2537.4,8.0]
[1747725683981,3.94088669,2537.5,2537.4,22.449]
[1747725684787,3.94088669,2537.5,2537.4,8.0]
[1747725685083,3.94104201,2537.4,2537.3,17.022]
[1747725685260,3.94104201,2537.4,2537.3,25.562]
[1747725685656,3.94104201,2537.4,2537.3,17.022]
[1747725685986,3.94104201,2537.4,2537.3,25.562]
[1747725687756,3.94104201,2537.4,2537.3,17.022]
[1747725688190,3.94104201,2537.4,2537.3,25.561]
[1747725688481,3.94104201,2537.4,2537.3,17.022]
[1747725688686,3.94104201,2537.4,2537.3,25.561]
[1747725690988,5.12330997,2537.4,2537.3,17.022]
[1747725691189,5.12330997,2537.4,2537.3,25.561]
[1747725691964,3.94104201,2537.4,2537.3,25.561]
[1747725692366,3.94104201,2537.4,2537.3,17.022]
[1747725692798,3.94104201,2537.4,2537.3,25.561]
[1747725694585,3.94104201,2537.4,2537.3,17.022]
[1747725694892,3.94104201,2537.4,2537.3,25.517]
[1747725695095,5.12330997,2537.4,2537.3,25.517]
[1747725697993,3.94104201,2537.4,2537.3,25.517]
[1747725700374,3.94104201,2537.4,2537.3,17.022]
[1747725700576,3.94104201,2537.4,2537.3,25.517]
[1747725704908,4.90694201,2537.4,2537.3,17.022]
[1747725705209,4.90694201,2537.4,2537.3,25.516]
[1747725706316,3.94104201,2537.4,2537.3,25.516]
[1747725709529,3.94104201,2537.4,2537.3,26.5036]
[1747725711017,3.94082698,2537.6,2537.3,34.5036]
[1747725711321,0.05,2537.9,2537.5,1.0526]
[1747725711931,0.05,2537.9,2537.5,4.99340151]
[1747725712131,0.05,2537.9,2537.6,8.0]
[1747725713938,0.05,2537.9,2537.8,27.93712083]
[1747725714295,0.05,2537.9,2537.8,9.0467]
[1747725714502,3.99026557,2537.9,2537.8,24.47077802]
[1747725714806,0.05,2537.9,2537.8,31.03077802]
[1747725715401,0.05,2537.9,2537.8,26.95311902]
[1747725715597,3.99026557,2537.9,2537.8,24.47077802]
[1747725715817,3.99026557,2537.9,2537.8,16.47077802]
[1747725716214,3.99026557,2537.9,2537.8,24.47077802]
[1747725716420,3.99026557,2537.9,2537.8,8.492]
[1747725716731,3.99026557,2537.9,2537.8,8.8688596]
[1747725718020,5.03246557,2537.9,2537.8,0.3768596]
[1747725718221,5.03246557,2537.9,2537.8,8.8688596]
[1747725719335,5.03246557,2537.9,2537.8,8.492]
[1747725719703,3.94057611,2537.7,2537.6,0.47096935]
[1747725719902,3.94057611,2537.7,2537.6,8.96296935]
[1747725720535,3.94057611,2537.7,2537.6,9.92202935]
[1747725720727,3.94057611,2537.7,2537.6,9.45106]
[1747725720926,3.94057611,2537.7,2537.6,17.45106]
[1747725721903,3.94049592,2537.8,2537.6,17.45106]
[1747725722108,3.99027287,2537.9,2537.6,17.45106]
[1747725722109,3.94057611,2537.7,2537.6,9.45106]
[1747725722332,3.94057611,2537.7,2537.6,17.8275679]
[1747725723943,3.94043847,2537.8,2537.7,8.0]
[1747725724111,3.94043847,2537.8,2537.7,9.87004565]
[1747725724308,3.94042083,2537.8,2537.7,9.87004565]
[1747725724507,3.94042083,2537.8,2537.7,10.86424565]
[1747725724718,3.94042083,2537.8,2537.7,11.24075355]
[1747725725315,3.94042083,2537.8,2537.7,0.3765079]
[1747725725515,3.94042083,2537.8,2537.7,8.8255079]
[1747725726209,3.99037378,2537.9,2537.7,8.8255079]
[1747725726410,3.99026557,2537.9,2537.8,0.9879]
[1747725726624,3.99026557,2537.9,2537.8,1.3644079]
[1747725726828,3.99026557,2537.9,2537.8,2.34574869]
[1747725727444,3.99026557,2537.9,2537.8,8.8255079]
[1747725727649,12.96346557,2537.9,2537.8,8.8255079]
[1747725728243,12.96346557,2537.9,2537.8,8.449]
[1747725730456,4.96346557,2537.9,2537.8,8.449]
[1747725731128,3.99026557,2537.9,2537.8,8.449]
[1747725734759,3.99026557,2537.9,2537.3,22.928]
[1747725734760,5.87231437,2537.9,2537.3,17.022]
[1747725734918,4.93274201,2537.4,2537.3,25.471]
[1747725736129,5.48274201,2537.4,2537.3,17.022]
[1747725736347,4.98639733,2537.3,2537.2,0.47096935]
[1747725736531,6.68840984,2537.3,2537.2,0.47096935]
[1747725737063,3.94150802,2537.1,2537.0,8.449]
[1747725748189,4.91978494,2536.6,2536.5,17.011]
[1747725748354,4.91978494,2536.6,2536.5,25.463]
[1747725750403,5.95977668,2536.6,2536.5,25.463]
[1747725750694,5.95977668,2536.6,2535.8,0.9867]
[1747725750695,3.94337316,2535.9,2535.8,0.9867]
[1747725750856,3.94368418,2535.7,2535.6,17.017]
[1747725751057,3.94368418,2535.7,2535.6,25.47]
[1747725752600,0.9911,2536.8,2535.7,8.9868]
[1747725752783,3.9429823,2536.2,2535.8,0.9868]
[1747725752963,3.94336843,2536.0,2535.8,0.9868]
[1747725753157,3.94337316,2535.9,2535.8,0.9868]
[1747725753603,3.94315204,2536.1,2535.9,8.0]
[1747725753782,3.94315204,2536.1,2535.8,0.9868]
[1747725753975,3.94315204,2536.1,2536.0,1.0271]
[1747725754173,3.94296437,2536.2,2536.0,1.0271]
[1747725754375,3.94296437,2536.2,2536.1,8.454]
[1747725755002,3.94306218,2536.1,2536.0,1.0271]
[1747725755199,3.94306218,2536.1,2536.0,17.4401]
[1747725755403,3.94291886,2536.2,2536.0,19.37052565]
[1747725755702,3.94306218,2536.1,2536.0,19.37052565]
[1747725757817,3.94306218,2536.1,2536.0,17.4401]
[1747725760189,3.94306218,2536.1,2536.0,8.0]
[1747725760517,3.94306218,2536.1,2536.0,16.414]
[1747725762126,3.94306218,2536.1,2536.0,8.414]
[1747725762329,4.96726218,2536.1,2536.0,8.414]
[1747725762540,4.96726218,2536.1,2535.6,17.017]
[1747725762541,3.94368418,2535.7,2535.6,17.017]
[1747725762833,3.94368418,2535.7,2535.6,25.431]
[1747725765198,3.94368418,2535.7,2535.6,25.80776934]
[1747725766241,3.94368418,2535.7,2535.6,0.37676934]
[1747725766397,4.94158418,2535.7,2535.6,0.37676934]
[1747725766602,5.83009799,2535.7,2535.6,0.37676934]
[1747725767031,3.94383972,2535.6,2535.5,8.414]
[1747725773627,16.71255927,2535.6,2535.5,8.414]
[1747725773961,3.94446197,2535.2,2534.9,17.022]
[1747725774148,4.96146197,2535.2,2535.0,8.416]
[1747725774335,5.85204117,2535.2,2535.0,8.416]
[1747725774957,24.66204117,2535.2,2534.6,8.416]
[1747725777164,16.71204117,2535.2,2534.6,8.416]
[1747725777745,17.10620186,2535.2,2534.6,8.416]
[1747725778364,16.71204117,2535.2,2534.6,8.416]
[1747725778738,16.71204117,2535.2,2534.7,1.0111]
[1747725780738,6.45204117,2535.2,2535.1,8.468]
[1747725784855,7.00204117,2535.2,2535.1,8.468]
[1747725785051,5.43504117,2535.2,2535.1,8.468]
[1747725785254,4.54446197,2535.2,2535.1,8.468]
[1747725787575,6.12016197,2535.2,2535.1,0.05]
[1747725788356,14.12016197,2535.2,2535.1,0.05]
[1747725792682,24.38016197,2535.2,2535.1,0.05]
[1747725792984,27.53265312,2535.2,2535.1,0.05]
[1747725795855,18.98265312,2535.2,2535.1,0.05]
[1747725796585,26.98265312,2535.2,2535.1,0.05]
[1747725797259,27.53265312,2535.2,2535.1,0.05]
[1747725798972,4.95339572,2534.6,2534.5,0.47096935]
[1747725799189,26.96381527,2534.6,2534.5,0.47096935]
[1747725799679,26.96381527,2534.6,2534.1,0.05]
[1747725799680,4.49601846,2534.2,2534.1,0.05]
[1747725799887,7.69643801,2534.2,2534.1,0.05]
[1747725800794,17.07454586,2534.2,2534.1,0.05]
[1747725801004,3.94325309,2536.0,2534.1,1.041]
[1747725801295,1.23048247,2536.3,2534.8,0.55]
[1747725801510,1.23048247,2536.3,2534.3,9.97186983]
[1747725801511,1.23048247,2536.3,2535.7,3.9435299]
[1747725801675,0.05,2536.9,2535.9,8.0]
[1747725802002,3.94214466,2536.7,2536.2,0.991]
[1747725802215,3.94214466,2536.7,2535.9,8.38515977]
[1747725802216,3.94214466,2536.7,2536.4,8.0]
[1747725802362,3.94214466,2536.7,2536.4,10.6589]
[1747725802692,3.94228648,2536.6,2536.4,10.6589]
[1747725803197,3.94244037,2536.5,2536.4,1.0209]
[1747725803494,3.94244037,2536.5,2536.4,9.3989]
[1747725807470,3.94235418,2536.6,2536.4,9.3989]
[1747725807671,3.94244037,2536.5,2536.4,1.0209]
[1747725807900,3.94244037,2536.5,2536.4,9.3969]
[1747725810471,3.94228494,2536.6,2535.9,8.38515977]
[1747725810798,3.94228494,2536.6,2536.1,8.375]
[1747725810799,3.94290671,2536.2,2536.1,8.375]
[1747725812380,3.94290671,2536.2,2536.1,9.3599]
[1747725815499,3.94210707,2536.8,2536.1,9.3599]
[1747725815713,0.05,2536.9,2536.1,9.3599]
[1747725815892,3.94272996,2536.4,2536.2,0.93599]
[1747725816099,3.94275125,2536.3,2536.2,0.93599]
[1747725817417,3.94275125,2536.3,2536.2,9.27799]
[1747725817626,3.94290671,2536.2,2536.1,0.9849]
[1747725817810,3.94290671,2536.2,2536.1,9.3269]
[1747725819324,3.94337316,2535.9,2535.8,17.035]
[1747725819623,3.94337316,2535.9,2535.8,26.3533]
[1747725821749,3.94337316,2535.9,2535.8,25.377]
[1747725825053,3.94330518,2536.0,2535.8,26.4111]
[1747725825218,3.94321766,2536.0,2535.9,1.0341]
[1747725825419,3.94321766,2536.0,2535.9,9.0341]
[1747725826253,3.94310191,2536.1,2535.9,9.0341]
[1747725826752,3.94310191,2536.1,2536.0,1.0615]
[1747725829323,3.94197414,2536.8,2536.0,1.0615]
[1747725829568,3.99184882,2536.9,2536.0,1.0615]
[1747725829858,3.9426694,2536.4,2536.0,1.0615]
[1747725830032,3.9426694,2536.4,2536.2,0.9623]
[1747725830229,3.9426694,2536.4,2536.3,8.342]
[1747725830764,3.9426694,2536.4,2536.3,16.71906347]
[1747725835185,3.9426694,2536.4,2536.3,16.51992614]
[1747725839565,3.9426694,2536.4,2536.3,8.51992614]
[1747725839766,4.73118208,2536.4,2536.3,8.51992614]
[1747725841575,8.05,2536.9,2536.3,9.53612614]
[1747725841775,3.9425958,2536.4,2536.3,9.53612614]
[1747725844825,3.9425958,2536.4,2536.3,0.37706347]
[1747725844988,3.9425958,2536.4,2536.3,8.71806347]
[1747725846119,3.9425958,2536.4,2536.3,9.76906347]
[1747725849323,3.9425958,2536.4,2536.3,8.71806347]
[1747725853355,11.2755,2537.4,2536.3,9.68306347]
[1747725853644,3.94127157,2537.3,2536.7,1.0497]
[1747725853800,3.94098953,2537.5,2536.8,39.816096]
[1747725854001,3.94088975,2537.5,2536.8,39.816096]
[1747725854600,3.94088975,2537.5,2536.8,40.19315947]
[1747725855159,1.96525857,2537.6,2536.9,8.55]
[1747725855448,1.96525857,2537.6,2537.0,4.96544856]
[1747725855735,3.94048953,2537.8,2537.0,4.96544856]
[1747725855918,3.94048953,2537.8,2537.1,0.37706347]
[1747725856121,3.94048953,2537.8,2537.2,8.0]
[1747725856347,3.94048953,2537.8,2537.3,8.315]
[1747725856546,3.94058251,2537.7,2537.4,1.6315]
[1747725857365,0.05,2537.9,2537.5,0.37706347]
[1747725857653,3.94073139,2537.6,2537.5,0.37706347]
[1747725858860,3.94088669,2537.5,2537.4,0.40323405]
[1747725859148,3.94088669,2537.5,2537.3,8.315]
[1747725859441,3.94079527,2537.6,2537.4,8.0]
[1747725859648,3.94082626,2537.6,2537.4,8.0]
[1747725860145,3.94088669,2537.5,2537.4,8.0]
[1747725861047,0.05,2537.9,2537.5,0.969]
[1747725861253,0.05,2537.9,2537.6,11.94060276]
[1747725861457,0.05,2537.9,2537.7,1.1505307]
[1747725861623,0.05,2537.9,2537.8,33.329]
[1747725862449,3.99026557,2537.9,2537.8,33.329]
[1747725863659,3.99026557,2537.9,2537.8,33.70479841]
[1747725864714,3.99026557,2537.9,2537.8,33.329]
[1747725865658,3.99026557,2537.9,2537.8,17.016]
[1747725865857,3.99026557,2537.9,2537.8,25.328]
[1747725872959,3.99026557,2537.9,2537.8,25.327]
[1747725875077,4.8894355,2537.9,2537.8,25.327]
[1747725875280,3.94150802,2537.1,2537.0,0.47074947]
[1747725875439,3.94150802,2537.1,2537.0,8.78174947]
[1747725875639,3.94150802,2537.1,2537.0,16.78174947]
[1747725876140,0.9908,2537.4,2537.1,8.0]
[1747725882208,0.9908,2537.4,2537.0,8.311]
[1747725882410,0.9908,2537.4,2536.9,25.293]
[1747725882804,0.9908,2537.4,2536.9,26.3155]
[1747725883607,0.9908,2537.4,2536.9,25.293]
[1747725884200,0.9908,2537.4,2537.0,0.37672617]
[1747725884902,0.9908,2537.4,2536.9,25.293]
[1747725889119,0.9908,2537.4,2537.0,0.37651029]
[1747725890918,0.9908,2537.4,2536.9,25.293]
[1747725891423,0.05,2537.9,2537.0,8.0]
[1747725891717,1.0074,2537.6,2537.1,1.019]
[1747725891920,1.0003,2537.8,2537.1,1.019]
[1747725892290,1.0003,2537.8,2537.2,0.37647889]
[1747725893930,1.0003,2537.8,2537.3,0.37647889]
[1747725894225,1.0003,2537.8,2537.4,8.282]
[1747725895527,1.0003,2537.8,2537.4,9.1102]
[1747725897046,3.94057611,2537.7,2537.4,9.1102]
[1747725897253,3.94088669,2537.5,2537.4,9.1102]
[1747725898456,3.94088669,2537.5,2537.4,9.48705443]
[1747725898659,3.94063492,2537.7,2537.5,8.0]
[1747725898847,3.94063492,2537.7,2537.6,2.00090565]
[1747725899055,3.99030551,2537.9,2537.6,2.00090565]
[1747725899359,3.94051358,2537.8,2537.6,2.00090565]
[1747725900247,3.94051358,2537.8,2537.7,0.37685443]
[1747725900446,3.99032758,2537.9,2537.7,1.20505443]
[1747725900649,0.05,2537.9,2537.8,0.9722]
[1747725901159,3.94042083,2537.8,2537.7,0.37685443]
[1747725901366,3.94042083,2537.8,2537.7,8.65885443]
[1747725902267,4.97552083,2537.8,2537.7,8.65885443]
[1747725902434,6.41978612,2537.8,2537.7,8.65885443]
[1747725903830,6.41978612,2537.8,2537.7,8.282]
[1747725905339,3.94166338,2537.0,2536.9,25.012]
[1747725905666,3.94166338,2537.0,2536.9,33.294]
[1747725907184,1.0319,2537.7,2536.9,33.67121029]
[1747725907392,3.94166338,2537.0,2536.9,33.67121029]
[1747725912773,3.94166338,2537.0,2536.9,25.67121029]
[1747725915180,4.96186338,2537.0,2536.9,8.62521029]
[1747725915358,4.96186338,2537.0,2536.9,0.37721029]
[1747725917468,3.94212953,2536.7,2536.6,0.47074947]
[1747725918812,3.94228494,2536.6,2536.5,8.248]
[1747725919714,3.94228494,2536.6,2536.5,9.21196136]
[1747725920091,3.94209069,2536.8,2536.6,8.992]
[1747725920414,3.94212953,2536.7,2536.6,0.992]
[1747725921314,3.94212953,2536.7,2536.6,9.36858207]
[1747725922428,3.94194761,2536.9,2536.6,9.36858207]
[1747725922727,1.063,2537.4,2536.6,9.36858207]
[1747725922728,3.94115754,2537.4,2536.7,9.85805434]
[1747725925040,3.94088669,2537.5,2537.4,0.9635]
[1747725925197,3.94119733,2537.3,2537.2,8.969]
[1747725925399,3.94119733,2537.3,2537.2,10.82705434]
[1747725925629,3.94119733,2537.3,2537.2,11.29780381]
[1747725926646,3.94109746,2537.4,2537.2,11.29780381]
[1747725926944,3.94119733,2537.3,2537.2,11.67420172]
[1747725927142,3.94119733,2537.3,2537.2,8.84714738]
[1747725927347,3.94108673,2537.4,2537.2,8.84714738]
[1747725927646,3.94104201,2537.4,2537.3,1.0307]
[1747725927840,3.94091695,2537.5,2537.3,1.0307]
[1747725928039,3.94104201,2537.4,2537.3,1.0307]
[1747725928250,3.94104201,2537.4,2537.3,9.0307]
[1747725928820,3.94104201,2537.4,2537.3,9.40709791]
[1747725929144,3.94104201,2537.4,2537.3,8.37639791]
[1747725931458,3.94104201,2537.4,2537.3,0.37639791]
[1747725932248,3.94135267,2537.2,2537.1,25.266]
[1747725942866,5.00615267,2537.2,2537.1,25.266]
[1747725945100,5.00615267,2537.2,2537.1,8.249]
[1747725946577,13.00615267,2537.2,2537.1,8.249]
[1747725946991,3.9425958,2536.4,2536.3,17.016]
[1747725947173,3.9425958,2536.4,2536.3,27.46461108]